bitfinex/quotes_SOLUSD_20251002
["timestamp","ask_amount","ask_price","bid_price","bid_amount"]
[1759380769035,31.4,223.48,223.44,5.12546134]
[1759380769229,31.4,223.48,223.44,4.47546134]
[1759380769440,35.87468838,223.48,223.43,79.2]
[1759380769755,0.67,223.47,223.43,79.2]
[1759380770339,0.67,223.46,223.43,79.2]
[1759380770947,13.44477558,223.49,223.44,0.65]
[1759380771146,31.4,223.46,223.44,0.65]
[1759380771460,31.4,223.46,223.45,0.65]
[1759380771839,4.47427293,223.5,223.45,0.65]
[1759380772146,31.4,223.49,223.46,0.65]
[1759380772743,4.47427293,223.5,223.47,0.65]
[1759380773056,31.4,223.49,223.44,4.4752782]
[1759380773247,31.4,223.49,223.45,0.65]
[1759380773574,31.4,223.49,223.46,0.65]
[1759380774563,31.4,223.48,223.43,79.2]
[1759380774764,31.4,223.47,223.44,0.69]
[1759380774958,31.4,223.46,223.45,0.69]
[1759380775146,31.4,223.46,223.43,84.36566309]
[1759380775346,31.4,223.46,223.44,0.69]
[1759380775551,31.4,223.46,223.43,83.67566309]
[1759380775738,31.4,223.46,223.45,0.69]
[1759380778959,31.4,223.46,223.45,79.89]
[1759380781274,31.4,223.46,223.45,84.36527411]
[1759380781577,4.47426964,223.51,223.45,84.36527411]
[1759380781767,31.4,223.5,223.46,0.69]
[1759380781967,31.4,223.5,223.47,0.69]
[1759380782763,35.87430751,223.5,223.45,83.67527411]
[1759380782965,0.69,223.49,223.45,79.2]
[1759380783654,0.69,223.49,223.45,79.89]
[1759380783855,35.87430751,223.5,223.45,79.89]
[1759380784055,36.56430751,223.5,223.45,79.89]
[1759380784372,36.56430751,223.5,223.46,0.69]
[1759380784570,35.87430751,223.5,223.45,83.67522223]
[1759380784776,4.47407274,223.51,223.47,0.69]
[1759380784978,31.4,223.5,223.46,0.69]
[1759380786277,32.09,223.5,223.46,0.69]
[1759380786858,31.4,223.5,223.46,0.69]
[1759380787065,31.4,223.49,223.46,0.69]
[1759380787270,7.46293982,223.52,223.46,0.69]
[1759380787453,31.4,223.51,223.46,0.69]
[1759380788592,4.47367243,223.53,223.46,5.16493724]
[1759380788889,4.47367243,223.53,223.47,0.69]
[1759380788890,31.4,223.5,223.47,0.69]
[1759380789183,31.4,223.5,223.48,0.69]
[1759380791767,32.09,223.5,223.46,79.89]
[1759380791970,36.56432141,223.5,223.46,79.2]
[1759380792169,35.87432141,223.5,223.46,79.89]
[1759380792371,31.4,223.5,223.47,0.69]
[1759380793390,35.87428922,223.5,223.46,79.2]
[1759380793687,0.69,223.49,223.46,79.2]
[1759380794574,35.87428922,223.5,223.46,79.2]
[1759380794775,36.56428922,223.5,223.46,79.2]
[1759380795091,31.4,223.5,223.47,0.69]
[1759380795474,31.4,223.5,223.48,0.69]
[1759380795678,12.04508944,223.57,223.49,21.49]
[1759380795859,11.35508944,223.57,223.5,0.69]
[1759380796064,11.35508944,223.57,223.51,10.87647521]
[1759380796264,0.69,223.63,223.54,20.8]
[1759380796572,0.69,223.63,223.55,0.69]
[1759380796573,31.38,223.62,223.55,0.69]
[1759380797164,31.38,223.62,223.56,4.4730721]
[1759380797489,0.69,223.63,223.57,0.69]
[1759380797691,17.10898382,223.67,223.59,20.8]
[1759380797995,32.07,223.66,223.59,20.8]
[1759380798291,32.07,223.66,223.6,0.69]
[1759380798495,32.07,223.66,223.59,20.8]
[1759380798675,32.07,223.66,223.6,0.69]
[1759380799272,32.07,223.66,223.6,5.16213705]
[1759380800578,0.69,223.65,223.59,20.8]
[1759380800773,0.69,223.65,223.59,21.49]
[1759380802373,5.16142385,223.65,223.59,21.49]
[1759380802574,31.38,223.66,223.6,0.72]
[1759380802776,32.05,223.66,223.6,79.92]
[1759380804404,36.52108927,223.66,223.6,79.92]
[1759380805299,32.05,223.66,223.6,83.67221136]
[1759380805510,32.05,223.66,223.61,0.71]
[1759380805676,32.08,223.66,223.61,0.71]
[1759380806393,36.55109348,223.66,223.61,0.71]
[1759380806978,0.7,223.65,223.6,79.2]
[1759380807181,0.7,223.64,223.6,79.2]
[1759380807396,5.17147967,223.64,223.6,79.2]
[1759380808195,0.7,223.63,223.6,79.2]
[1759380808398,31.36,223.62,223.6,79.2]
[1759380808609,0.7,223.61,223.51,90.07647521]
[1759380808792,0.7,223.6,223.54,0.71]
[1759380808989,0.7,223.6,223.54,21.51]
[1759380809192,34.41585925,223.62,223.55,0.71]
[1759380809389,4.47207191,223.61,223.55,0.71]
[1759380809593,32.06,223.62,223.55,0.71]
[1759380809789,36.53191082,223.62,223.55,5.18325202]
[1759380809994,35.83191082,223.62,223.56,0.71]
[1759380810387,31.36,223.61,223.56,0.71]
[1759380810589,4.47163049,223.64,223.56,0.71]
[1759380810811,31.36,223.63,223.56,0.71]
[1759380811517,24.6119593,223.67,223.57,4.47287203]
[1759380811518,31.36,223.62,223.57,4.47287203]
[1759380811809,31.36,223.62,223.55,5.18307215]
[1759380812111,0.7,223.61,223.55,5.18307215]
[1759380812308,31.36,223.62,223.56,0.71]
[1759380813208,35.831888,223.62,223.56,5.18304924]
[1759380813915,35.831888,223.62,223.57,0.71]
[1759380814110,35.831888,223.62,223.56,4.47304924]
[1759380814307,31.36,223.62,223.58,0.71]
[1759380814625,4.47162725,223.64,223.59,0.71]
[1759380814794,31.36,223.62,223.59,0.71]
[1759380815615,31.36,223.62,223.6,0.71]
[1759380816713,31.36,223.62,223.61,0.71]
[1759380817120,31.36,223.62,223.58,83.67263143]
[1759380817320,31.36,223.63,223.59,0.71]
[1759380817618,4.47106297,223.67,223.59,0.71]
[1759380817819,5.17106297,223.67,223.59,79.91]
[1759380818007,31.36,223.66,223.6,0.71]
[1759380818792,32.06,223.66,223.6,0.71]
[1759380818996,32.06,223.66,223.59,79.91]
[1759380819409,4.47127207,223.65,223.59,79.91]
[1759380819712,5.17127207,223.65,223.59,84.38243184]
[1759380819901,31.36,223.66,223.62,20.8]
[1759380820096,31.36,223.66,223.59,83.67243184]
[1759380820097,5.17127207,223.65,223.59,79.2]
[1759380820516,5.17127207,223.65,223.59,83.67245287]
[1759380820714,4.47127207,223.65,223.59,79.2]
[1759380820921,0.7,223.64,223.59,79.2]
[1759380821132,0.7,223.63,223.59,79.2]
[1759380821302,32.06,223.62,223.59,79.2]
[1759380821502,32.06,223.62,223.58,20.8]
[1759380821503,32.06,223.62,223.58,100.0]
[1759380821719,36.53198157,223.62,223.58,100.0]
[1759380823721,4.47227191,223.6,223.55,79.2]
[1759380823907,4.47227191,223.6,223.54,21.51]
[1759380824107,4.47227191,223.6,223.55,20.8]
[1759380824108,5.17227191,223.6,223.55,20.8]
[1759380825520,0.7,223.59,223.55,20.8]
[1759380825703,31.36,223.58,223.55,20.8]
[1759380825901,31.36,223.58,223.56,0.71]
[1759380826211,31.36,223.58,223.57,0.71]
[1759380828829,31.36,223.58,223.55,20.8]
[1759380829013,31.36,223.58,223.56,0.71]
[1759380829413,31.36,223.58,223.56,79.91]
[1759380829830,31.36,223.58,223.56,79.2]
[1759380830133,31.36,223.58,223.56,79.91]
[1759380831631,31.36,223.58,223.57,0.71]
[1759380831830,31.36,223.58,223.56,79.2]
[1759380832010,31.36,223.58,223.55,100.71]
[1759380832214,31.36,223.58,223.55,100.0]
[1759380832403,31.36,223.58,223.56,0.71]
[1759380835023,31.36,223.58,223.55,104.47321867]
[1759380835231,31.36,223.58,223.57,0.71]
[1759380835833,31.36,223.58,223.55,104.47321867]
[1759380836153,31.36,223.58,223.56,0.71]
[1759380838430,31.36,223.58,223.55,104.47322861]
[1759380838634,31.36,223.59,223.56,0.71]
[1759380838830,31.36,223.6,223.57,0.71]
[1759380840034,31.36,223.6,223.55,100.71]
[1759380840334,35.83227932,223.6,223.56,0.71]
[1759380840725,31.36,223.6,223.55,104.47322295]
[1759380841038,31.36,223.6,223.56,0.71]
[1759380841334,31.36,223.6,223.56,79.91]
[1759380841909,31.36,223.6,223.57,0.71]
[1759380842109,13.43574355,223.65,223.57,79.2]
[1759380842425,31.36,223.64,223.6,20.8]
[1759380842626,31.36,223.64,223.61,0.71]
[1759380843012,31.36,223.64,223.6,20.8]
[1759380843306,31.36,223.64,223.6,21.51]
[1759380843742,31.36,223.64,223.6,20.8]
[1759380844035,31.36,223.64,223.6,21.51]
[1759380844339,31.36,223.64,223.61,0.71]
[1759380845521,31.36,223.64,223.6,20.8]
[1759380845839,31.36,223.64,223.6,21.51]
[1759380846039,32.08,223.64,223.6,20.8]
[1759380846228,35.83161016,223.64,223.6,20.8]
[1759380846421,35.83161016,223.64,223.6,21.51]
[1759380847444,36.55161016,223.64,223.6,100.0]
[1759380848845,35.83161016,223.64,223.6,100.0]
[1759380849024,35.83161016,223.64,223.6,100.71]
[1759380849448,36.55161016,223.64,223.6,100.71]
[1759380849745,36.55161016,223.64,223.6,100.0]
[1759380850042,5.19161016,223.64,223.6,100.0]
[1759380850248,31.34,223.63,223.6,100.71]
[1759380850745,31.34,223.63,223.61,0.71]
[1759380851941,31.34,223.63,223.6,100.0]
[1759380852242,3.07585925,223.62,223.57,20.8]
[1759380852444,0.72,223.61,223.57,20.8]
[1759380852742,31.34,223.6,223.57,20.8]
[1759380852930,31.34,223.6,223.57,0.71]
[1759380856743,35.81228713,223.6,223.57,0.71]
[1759380857050,31.34,223.6,223.57,0.71]
[1759380859535,31.34,223.6,223.58,0.71]
[1759380860049,4.47206076,223.62,223.58,0.71]
[1759380860259,5.97995165,223.64,223.58,5.18266815]
[1759380860442,4.47159264,223.64,223.59,0.71]
[1759380860640,31.34,223.63,223.59,0.71]
[1759380860959,0.87676152,223.68,223.61,20.8]
[1759380861171,0.72,223.67,223.61,20.8]
[1759380861337,31.34,223.66,223.61,20.8]
[1759380861537,31.34,223.66,223.62,0.72]
[1759380861934,0.71,223.65,223.59,5.19246137]
[1759380862139,0.71,223.65,223.59,0.72]
[1759380864769,35.81108198,223.66,223.59,5.1923621]
[1759380864968,35.81108198,223.66,223.6,0.71]
[1759380866873,35.81108198,223.66,223.6,5.18209193]
[1759380867043,31.34,223.65,223.6,5.18209193]
[1759380867242,31.34,223.65,223.61,0.71]
[1759380868652,31.34,223.65,223.62,0.71]
[1759380869667,31.34,223.65,223.6,25.98209193]
[1759380869965,31.34,223.65,223.61,0.71]
[1759380870162,31.34,223.65,223.62,0.71]
[1759380871167,31.34,223.65,223.62,79.91]
[1759380872353,31.34,223.65,223.62,79.2]
[1759380872554,36.51133228,223.65,223.62,79.2]
[1759380872855,31.34,223.65,223.63,0.71]
[1759380875068,31.34,223.65,223.62,79.2]
[1759380875271,31.34,223.65,223.62,84.38182172]
[1759380875462,31.34,223.65,223.63,0.71]
[1759380876564,31.34,223.65,223.62,79.2]
[1759380876870,35.81128316,223.65,223.62,79.2]
[1759380877169,4.47128316,223.65,223.62,79.2]
[1759380877378,31.32,223.64,223.62,79.2]
[1759380880372,31.32,223.64,223.62,79.91]
[1759380881057,31.32,223.64,223.62,79.2]
[1759380881656,32.02,223.64,223.62,79.2]
[1759380881963,31.32,223.64,223.62,79.2]
[1759380882170,35.79153734,223.64,223.62,79.2]
[1759380882873,35.79153734,223.64,223.6,100.71]
[1759380883268,31.32,223.64,223.61,0.71]
[1759380883568,1.50835901,223.67,223.61,0.71]
[1759380883772,31.32,223.66,223.61,0.71]
[1759380883976,31.32,223.66,223.6,104.47221941]
[1759380884159,31.32,223.66,223.62,0.71]
[1759380884360,31.32,223.66,223.63,0.71]
[1759380885072,35.79111499,223.66,223.61,0.71]
[1759380885259,35.79111499,223.66,223.62,0.71]
[1759380885460,35.79111499,223.66,223.63,0.71]
[1759380885774,35.79111499,223.66,223.6,104.47221941]
[1759380885954,35.79111499,223.66,223.61,0.71]
[1759380886155,35.79111499,223.66,223.62,0.71]
[1759380887051,35.79111499,223.66,223.63,0.71]
[1759380887872,1.50835901,223.64,223.6,79.2]
[1759380888076,31.32,223.63,223.6,79.2]
[1759380888263,31.32,223.63,223.58,0.71]
[1759380888450,31.32,223.63,223.59,0.71]
[1759380888451,35.79171057,223.63,223.59,0.71]
[1759380888974,31.32,223.63,223.59,0.71]
[1759380889574,35.79169251,223.63,223.59,0.71]
[1759380891481,5.17190863,223.62,223.57,100.71]
[1759380891670,0.7,223.61,223.57,100.71]
[1759380891872,31.32,223.6,223.57,100.71]
[1759380892588,31.32,223.6,223.58,0.71]
[1759380892773,31.32,223.6,223.57,100.0]
[1759380892976,31.32,223.6,223.57,100.71]
[1759380893689,31.32,223.6,223.58,0.65]
[1759380897761,31.32,223.6,223.57,104.47284382]
[1759380897968,31.32,223.6,223.57,105.12284382]
[1759380898168,5.17187254,223.62,223.57,105.12284382]
[1759380898371,31.32,223.61,223.58,0.65]
[1759380899776,0.7,223.63,223.58,0.65]
[1759380900087,31.32,223.62,223.59,0.65]
[1759380900290,32.02,223.62,223.57,105.12284382]
[1759380900486,32.02,223.62,223.57,104.47284382]
[1759380900695,31.32,223.62,223.58,0.65]
[1759380900870,31.32,223.62,223.59,0.65]
[1759380901068,32.02,223.62,223.57,105.12284382]
[1759380901288,32.02,223.62,223.58,0.65]
[1759380901586,31.32,223.62,223.58,0.65]
[1759380901791,31.32,223.62,223.59,0.65]
[1759380902298,31.32,223.61,223.59,0.65]
[1759380903101,31.32,223.61,223.57,100.65]
[1759380903290,0.7,223.6,223.57,100.0]
[1759380903479,31.32,223.59,223.57,100.0]
[1759380905403,31.32,223.59,223.57,100.65]
[1759380909602,31.32,223.59,223.57,21.45]
[1759380911520,0.7,223.58,223.55,79.2]
[1759380911700,31.32,223.57,223.54,20.8]
[1759380912014,31.32,223.57,223.55,21.45]
[1759380912511,31.32,223.57,223.54,20.8]
[1759380912695,31.32,223.57,223.56,0.65]
[1759380913204,0.13,224.8,223.56,0.65]
[1759380913205,3.7270613,223.7,223.56,100.65]
[1759380913383,2.97936922,223.69,223.61,4.47207191]
[1759380913578,31.3,223.67,223.61,4.47207191]
[1759380913898,31.3,223.67,223.62,0.65]
[1759380915011,31.3,223.67,223.62,5.1217348]
[1759380915182,31.3,223.67,223.63,0.65]
[1759380915384,31.3,223.67,223.64,0.65]
[1759380915904,0.15676152,223.68,223.62,25.2717348]
[1759380916085,31.3,223.67,223.63,0.65]
[1759380916285,31.3,223.67,223.64,0.65]
[1759380920284,32.0,223.67,223.62,21.45]
[1759380920684,32.0,223.67,223.63,0.65]
[1759380921109,31.3,223.67,223.63,0.65]
[1759380921613,31.3,223.67,223.63,79.85]
[1759380922209,31.3,223.67,223.63,83.67153919]
[1759380922505,31.3,223.67,223.64,0.71]
[1759380922708,31.3,223.67,223.63,83.67153919]
[1759380922914,31.3,223.67,223.63,84.38153919]
[1759380923696,31.3,223.67,223.63,79.91]
[1759380925112,31.3,223.66,223.63,79.91]
[1759380925920,31.3,223.66,223.63,83.67165095]
[1759380926101,31.3,223.66,223.63,84.35165095]
[1759380926295,0.69,223.65,223.63,79.2]
[1759380926603,2.35554689,223.64,223.59,0.68]
[1759380926811,31.3,223.63,223.6,0.68]
[1759380926982,31.3,223.63,223.59,20.8]
[1759380927186,0.69,223.62,223.55,0.68]
[1759380927386,2.35554689,223.61,223.54,0.68]
[1759380927588,4.47247193,223.59,223.56,20.8]
[1759380927806,5.16247193,223.59,223.56,20.8]
[1759380928006,4.47247193,223.59,223.56,20.8]
[1759380928495,5.16247193,223.59,223.54,0.68]
[1759380928893,0.69,223.59,223.54,25.27346617]
[1759380929182,48.87232479,223.6,223.55,0.68]
[1759380929384,49.56232479,223.6,223.55,0.68]
[1759380930106,45.09005265,223.6,223.54,25.27346617]
[1759380930313,45.09005265,223.6,223.55,0.68]
[1759380931207,49.56233488,223.6,223.55,0.68]
[1759380932904,49.56233488,223.6,223.54,25.27344944]
[1759380933096,49.56233488,223.6,223.55,0.68]
[1759380933298,36.46228223,223.6,223.55,79.88]
[1759380933500,49.89862754,223.6,223.55,79.88]
[1759380933827,36.46228223,223.6,223.55,79.88]
[1759380934023,36.46228223,223.6,223.55,79.2]
[1759380934201,49.89862754,223.6,223.56,0.68]
[1759380934402,36.46228223,223.6,223.56,0.68]
[1759380935703,31.99,223.6,223.56,0.68]
[1759380935901,2.35554689,223.59,223.55,79.2]
[1759380936102,38.81791061,223.6,223.55,79.88]
[1759380936325,14.12754899,223.59,223.55,79.88]
[1759380936900,14.12754899,223.59,223.55,79.2]
[1759380937105,13.43754899,223.59,223.55,79.88]
[1759380937306,14.12754899,223.59,223.55,79.88]
[1759380937504,31.3,223.58,223.55,79.88]
[1759380937825,31.3,223.57,223.55,79.2]
[1759380938014,18.6001574,223.59,223.54,21.48]
[1759380938336,31.3,223.58,223.54,21.48]
[1759380938899,31.3,223.58,223.55,0.68]
[1759380939129,0.69,223.57,223.53,79.2]
[1759380939518,14.12815091,223.57,223.53,79.2]
[1759380939731,0.69,223.57,223.53,79.88]
[1759380939930,5.16297949,223.57,223.53,79.88]
[1759380940236,0.69,223.56,223.53,79.2]
[1759380940527,31.3,223.55,223.53,79.2]
[1759380942205,31.3,223.55,223.53,0.68]
[1759380943906,31.3,223.55,223.51,104.47406093]
[1759380943907,31.3,223.55,223.54,0.68]
[1759380944210,31.3,223.55,223.51,100.0]
[1759380944211,31.3,223.55,223.52,0.68]
[1759380945007,31.3,223.55,223.52,5.15385853]
[1759380945205,31.3,223.55,223.53,0.68]
[1759380945436,31.3,223.55,223.54,0.68]
[1759380946324,4.47268604,223.58,223.54,0.68]
[1759380946631,31.3,223.57,223.54,0.68]
[1759380947413,31.3,223.57,223.55,0.68]
[1759380947928,31.3,223.57,223.53,0.68]
[1759380948332,5.16248011,223.59,223.54,0.68]
[1759380948535,31.3,223.58,223.55,0.68]
[1759380949832,36.46269998,223.58,223.53,0.68]
[1759380950212,35.77269998,223.58,223.53,0.68]
[1759380950414,36.46269998,223.58,223.53,0.68]
[1759380950833,38.12824687,223.58,223.51,104.47406173]
[1759380951034,0.69,223.57,223.51,104.47406173]
[1759380951239,0.69,223.56,223.51,104.47406173]
[1759380951415,31.3,223.55,223.51,104.47406173]
[1759380951616,31.3,223.55,223.52,0.68]
[1759380952425,31.3,223.55,223.51,20.8]
[1759380952426,0.69,223.54,223.51,20.8]
[1759380952635,38.12889447,223.55,223.51,20.8]
[1759380952820,38.81889447,223.55,223.51,20.8]
[1759380953017,2.35554689,223.53,223.48,79.2]
[1759380953221,31.28,223.52,223.48,100.0]
[1759380953433,31.28,223.52,223.49,0.68]
[1759380953643,31.28,223.52,223.5,0.68]
[1759380954020,31.28,223.52,223.5,0.72]
[1759380955135,31.28,223.52,223.51,0.72]
[1759380955530,31.28,223.52,223.49,0.72]
[1759380955727,31.28,223.52,223.5,0.72]
[1759380956039,31.28,223.52,223.48,100.0]
[1759380956237,31.28,223.52,223.5,0.72]
[1759380957124,11.18286262,223.56,223.48,100.0]
[1759380957125,2.35554689,223.56,223.51,0.72]
[1759380957443,31.28,223.55,223.51,21.52]
[1759380957743,31.28,223.54,223.52,21.52]
[1759380958043,31.28,223.54,223.53,0.72]
[1759380962045,31.28,223.54,223.53,5.19360901]
[1759380962629,31.28,223.54,223.53,0.72]
[1759380963839,31.28,223.54,223.52,100.72]
[1759380965335,31.28,223.54,223.53,0.72]
[1759380965939,11.6806601,223.61,223.56,20.8]
[1759380966144,31.28,223.6,223.57,0.72]
[1759380966549,31.28,223.6,223.56,20.8]
[1759380966743,31.28,223.6,223.56,21.52]
[1759380967348,32.0,223.6,223.56,25.99303848]
[1759380967943,31.28,223.6,223.56,25.99303848]
[1759380971171,31.28,223.6,223.56,25.27303848]
[1759380971362,3.07554689,223.59,223.53,79.92]
[1759380971875,3.07554689,223.59,223.53,79.2]
[1759380972048,3.07554689,223.59,223.54,0.72]
[1759380972438,2.35554689,223.57,223.52,0.72]
[1759380972639,32.0,223.56,223.52,0.72]
[1759380973038,32.0,223.56,223.51,104.47406401]
[1759380973259,32.0,223.56,223.51,105.19406401]
[1759380973446,36.47308313,223.56,223.51,105.19406401]
[1759380974453,0.72,223.55,223.51,100.0]
[1759380975170,35.75308313,223.56,223.51,100.72]
[1759380975373,36.47308313,223.56,223.51,100.0]
[1759380975543,36.47308313,223.56,223.52,0.72]
[1759380975746,38.82863002,223.56,223.51,100.0]
[1759380975967,38.82863002,223.56,223.51,100.72]
[1759380976154,38.82863002,223.56,223.52,0.72]
[1759380976545,38.82863002,223.56,223.51,100.0]
[1759380976746,38.82863002,223.56,223.52,0.72]
[1759380978173,38.82863002,223.56,223.51,100.0]
[1759380978473,38.82863002,223.56,223.52,0.72]
[1759380979640,36.47308313,223.56,223.52,0.72]
[1759380980143,38.82863002,223.56,223.52,0.72]
[1759380982348,37.9824538,223.56,223.52,0.72]
[1759380983350,36.47308313,223.56,223.52,0.72]
[1759380983975,0.72,223.55,223.51,100.0]
[1759380984457,37.2624538,223.56,223.51,100.0]
[1759380984659,37.9824538,223.56,223.51,100.7]
[1759380985064,37.2624538,223.56,223.51,100.7]
[1759380985257,0.72,223.55,223.51,100.7]
[1759380985458,37.2624538,223.56,223.51,100.7]
[1759380985661,0.72,223.55,223.51,100.7]
[1759380985974,5.19347177,223.55,223.51,100.7]
[1759380988074,4.47347177,223.55,223.51,100.7]
[1759380988673,4.47347177,223.55,223.52,0.7]
[1759380989566,31.28,223.54,223.52,0.7]
[1759380991571,4.47347177,223.55,223.53,0.7]
[1759380991762,31.26,223.53,223.51,79.2]
[1759380991956,31.26,223.53,223.51,79.9]
[1759380993157,35.73367931,223.53,223.51,79.9]
[1759380995675,35.73367931,223.53,223.51,0.7]
[1759380997183,4.47345294,223.55,223.52,0.7]
[1759380997370,31.26,223.54,223.52,0.7]
[1759380998984,4.47367243,223.53,223.5,0.7]
[1759380999162,31.26,223.52,223.5,0.7]
[1759381000190,31.26,223.52,223.48,79.9]
[1759381000571,31.26,223.52,223.49,0.7]
[1759381000766,35.73406465,223.52,223.49,0.7]
[1759381001181,35.73406465,223.52,223.5,0.7]
[1759381002893,35.73406465,223.52,223.48,79.2]
[1759381003196,35.73406465,223.52,223.49,0.7]
[1759381004880,35.73406465,223.52,223.48,79.2]
[1759381005091,35.73406465,223.52,223.49,0.7]
[1759381005397,35.73406465,223.52,223.5,0.7]
[1759381005991,31.26,223.51,223.48,83.67465586]
[1759381006180,31.26,223.5,223.49,0.7]
[1759381008780,31.26,223.5,223.48,79.9]
[1759381008981,31.26,223.5,223.49,0.7]
[1759381011389,31.26,223.5,223.48,79.2]
[1759381011596,35.73427357,223.5,223.48,79.9]
[1759381011899,0.72,223.49,223.45,79.2]
[1759381012199,31.26,223.48,223.45,79.9]
[1759381015089,31.26,223.48,223.46,0.72]
[1759381017202,31.26,223.48,223.44,100.72]
[1759381017408,35.73470354,223.48,223.45,0.72]
[1759381017706,36.42470354,223.48,223.44,100.0]
[1759381017882,0.69,223.47,223.43,0.72]
[1759381018085,31.26,223.46,223.43,0.72]
[1759381019009,36.42517429,223.46,223.41,21.52]
[1759381019210,36.42517429,223.46,223.42,0.72]
[1759381019519,35.73517429,223.46,223.42,0.72]
[1759381019805,0.69,223.45,223.4,0.1]
[1759381020009,0.69,223.45,223.41,0.72]
[1759381020207,37.24454496,223.46,223.41,0.72]
[1759381020396,37.93454496,223.46,223.41,0.72]
[1759381021486,37.24454496,223.46,223.41,0.72]
[1759381021817,5.16531974,223.45,223.4,0.1]
[1759381021996,5.16531974,223.45,223.4,0.82]
[1759381022200,13.44537815,223.48,223.43,20.8]
[1759381022404,31.26,223.47,223.44,0.72]
[1759381022699,31.26,223.47,223.43,20.8]
[1759381022700,31.26,223.47,223.45,0.72]
[1759381025193,31.26,223.47,223.46,0.72]
[1759381025808,4.47407552,223.51,223.46,0.72]
[1759381026015,31.26,223.5,223.47,0.72]
[1759381026205,31.26,223.5,223.45,83.6752597]
[1759381026411,31.26,223.5,223.46,0.72]
[1759381028413,31.26,223.49,223.47,0.72]
[1759381028608,31.26,223.48,223.47,0.72]
[1759381030802,31.26,223.48,223.45,79.92]
[1759381031124,31.26,223.48,223.45,79.2]
[1759381031422,31.26,223.48,223.45,0.72]
[1759381032427,0.69,223.47,223.44,20.8]
[1759381032725,0.69,223.46,223.42,20.8]
[1759381032926,31.24,223.45,223.42,21.52]
[1759381033489,31.24,223.45,223.43,0.72]
[1759381037100,5.16471315,223.48,223.43,0.72]
[1759381037317,31.24,223.47,223.43,0.72]
[1759381037500,5.16471315,223.48,223.43,0.72]
[1759381037700,31.24,223.47,223.44,0.72]
[1759381038390,31.24,223.47,223.42,20.8]
[1759381038602,10.87647521,223.44,223.4,0.1]
[1759381038923,1.50937067,223.41,223.4,0.1]
[1759381039296,17.55192125,223.41,223.4,0.1]
[1759381044235,18.40442524,223.41,223.4,0.1]
[1759381044530,1.79319929,223.42,223.4,0.79]
[1759381044831,31.26,223.41,223.4,0.1]
[1759381045528,31.26,223.41,223.4,0.79]
[1759381048317,45.19834987,223.41,223.4,0.1]
[1759381048829,51.46762453,223.41,223.4,0.1]